Cogmind - Beta 12 @@@ ROGUE MODE // 2023.11.30 @ 12:48:36 Player: Mozco Result: Destroyed by Y-64 Sentinel with KE Penetrator Performance ------------- Evolutions (6) 3000 Regions Visited (11) 2200 Robots Destroyed (204) 1020 Value Destroyed (8454) 8454 Prototype IDs (9) 180 Alien Tech Used (0) 0 Bonus (2087) 2087 TOTAL SCORE: 16941 Bonus ------- High Alert Combat Kills 1424 Follower Combat Kills 663 Cogmind --------- Core Integrity 0/1150 Matter 300/300 Energy 99/100 System Corruption 16% Temperature Cool (9) Movement Core (50) Location -4/Extension Parts ------- > --- POWER (3) -------- (None) > --- PROPULSION (5) --- (None) > --- UTILITY (8) ------ (None) > --- WEAPON (3) ------- (None) > --- INVENTORY (5) ---- Light Quantum Reactor Advanced Heat Sink Particle Accelerator Long-range Phase Cannon Phasing Sabre Peak State ------------ > --- POWER ------------ Micro Fission Core Light Antimatter Reactor Improved Fusion Compressor > --- PROPULSION ------- Flexi-carbon Leg Flexi-carbon Leg Myomer Leg Myomer Leg Advanced VSS Leg > --- UTILITY ---------- Advanced Cryofiber Web Advanced Heat Sink Advanced Coolant Injector High-capacity Storage Unit Enhanced Optical Array Core Analyzer Improved Utility Shielding Improved Hardlight Generator > --- WEAPON ----------- Dispersion Rifle Heavy Plasma Cannon Long-range Phase Cannon > --- INVENTORY -------- Neutrino Core Antimatter Reactor Light Antimatter Reactor Improved Treads Medium Treads Armored Medium Treads Armored Medium Treads Advanced Heat Sink Advanced Heat Sink Improved Energy Well Improved Energy Well Particle Accelerator Improved Utility Shielding Improved Medium Armor Plating Layered Light Armor Plating Focal Shield Improved Thermal Shield Drone Bay Long-range Phase Cannon Phasing Sabre [Rating: 119] Favorites ----------- Power Improved Deuterium Engine Engine Improved Deuterium Engine Power Core Micro Fission Core Reactor Light Antimatter Reactor Propulsion Armored Treads Treads Armored Treads Leg Flexi-carbon Leg Wheel Wheel Utility Advanced Heat Sink Device Advanced Heat Sink Storage High-capacity Storage Unit Processor Enhanced Optical Array Hackware Hacking Suite Protection Improved Light Armor Plating Weapon Long-range Phase Cannon Energy Gun Heavy Dispersion Rifle Energy Cannon Long-range Phase Cannon Ballistic Gun High-powered Shotgun Ballistic Cannon Improved Light Cannon Launcher Rocket Launcher Impact Weapon Power Maul Build | -11 -10 -9 -8 -7 -6 -6 -5 -5 -5 -4 -4 ------- Run | Jun Mat Mat Mat Fac Fac Low Fac Upp Upp Fac Ext Slots Evolved 12 | . . 2 2 2 2 . 2 . . 2 . Power 2 | . . . . . 1 . . . . 1 . Propulsion 3 | . . 1 1 . . . 1 . . . . Utility 6 | . . 1 1 1 1 . 1 . . 1 . Weapon 1 | . . . . 1 . . . . . . . Parts Attached 225 | 6 2 12 16 9 84 7 16 2 . 26 45 Power 33 | 1 . 1 2 1 8 1 2 1 . 8 8 Engine 14 | 1 . 1 2 1 6 1 . . . 2 . Core 14 | . . . . . 2 . 2 1 . 5 4 Reactor 5 | . . . . . . . . . . 1 4 Propulsion 67 | 2 . 4 7 . 24 1 4 . . 6 19 Treads 41 | . . 4 6 . 18 1 4 . . 5 3 Leg 24 | . . . 1 . 6 . . . . 1 16 Wheel 2 | 2 . . . . . . . . . . . Hover . | . . . . . . . . . . . . Flight . | . . . . . . . . . . . . Utility 80 | 1 1 3 4 5 31 3 8 1 . 8 15 Device 49 | . . 1 1 1 20 2 6 1 . 7 10 Storage 5 | 1 . 1 . . 1 1 . . . . 1 Processor 5 | . . . . 1 2 . 1 . . 1 . Hackware 3 | . . . . 1 1 . . . . . 1 Protection 18 | . 1 1 3 2 7 . 1 . . . 3 Artifact . | . . . . . . . . . . . . Weapon 45 | 2 1 4 3 3 21 2 2 . . 4 3 Energy Gun 11 | 1 1 . . . 6 1 . . . 2 . Energy Cannon 11 | . . . . . 5 . 2 . . 1 3 Ballistic Gun 6 | 1 . 4 1 . . . . . . . . Ballistic Cannon 8 | . . . 1 2 5 . . . . . . Launcher 6 | . . . 1 1 4 . . . . . . Special Weapon . | . . . . . . . . . . . . Impact Weapon 3 | . . . . . 1 1 . . . 1 . Slashing Weapon . | . . . . . . . . . . . . Piercing Weapon . | . . . . . . . . . . . . Special Melee Weapon . | . . . . . . . . . . . . Unidentified Prototypes 7 | . . . . . 7 . . . . . . Corrupted Parts 2 | . . . . . 1 . . . . . 1 System Corruption 8 | . . . . . 1 . . . . . 7 Parts Lost 74 | . . . 2 . 17 10 . . . 18 27 Power 19 | . . . 2 . 3 2 . . . 6 6 Propulsion 18 | . . . . . 3 1 . . . 6 8 Utility 24 | . . . . . 8 4 . . . 3 9 Weapon 13 | . . . . . 3 3 . . . 3 4 Highest Loss Streak 17 | . . . 1 . 6 8 . . . 11 17 To Critical Strikes 4 | . . . . . 1 . . . . 2 1 Average Slot Usage (%) 94 | . 92 97 97 99 92 92 93 100 100 90 93 Engine 5 | . 14 11 8 7 6 11 4 . . 2 . Core 3 | . . . . . 1 . 4 11 11 9 10 Treads 21 | . . 25 32 30 19 25 27 29 29 21 2 Leg 5 | . . . 2 . 6 . . . . . 22 Device 15 | . . 10 9 7 17 18 21 17 17 19 22 Storage 8 | . 14 11 9 7 9 7 11 11 11 7 4 Processor 4 | . . . . 4 3 . 3 5 5 9 8 Protection 7 | . 7 11 16 14 5 9 . 5 5 1 3 Energy Gun 2 | . 14 1 . . 5 4 . . . 3 3 Energy Cannon 6 | . . . . . 6 10 12 17 17 11 8 Ballistic Gun 3 | . 14 20 9 7 . . . . . . . Ballistic Cannon 4 | . . . 7 15 4 . . . . . . Naked Turns 2 | . . . . . . . . . . . 2 Heaviest Build 120 | 12 13 60 72 79 97 94 103 104 104 120 115 Greatest Support 136 | 26 26 63 83 82 106 104 116 116 116 136 118 Greatest Overweight (x) 2 | . . . 1 . 2 1 . . . 1 1 Average Overweight (x) . | . . . . . . . . . . . . Largest Inventory Capacity 20 | 8 8 20 20 20 20 20 20 20 20 20 20 Average Capacity 19 | 7 8 16 20 20 20 20 20 20 20 20 19 Most Carried 20 | 6 8 20 20 20 20 20 20 20 20 20 20 Average Carried 18 | 3 7 11 19 19 19 18 15 20 20 17 19 Final Capacity 20 | 8 8 20 20 20 20 20 20 20 20 20 5 Final Carried 20 | 6 8 20 20 20 20 15 20 20 20 17 5 Class Distribution -------------------- 32% | Mutant 21% | Scavenger-Tank 17% | Tank 16% | Scavenger-Mutant 8% | Scavenger-Gunner Dominant Class ---------------- Mutant | -10/Materials Mutant | -9/Materials Mutant | -8/Materials Tank | -7/Factory Mutant | -6/Factory Scavenger-Tank | -6/Lower Caves Mutant | -5/Factory Scavenger-Tank | -5/Upper Caves Scavenger-Tank | -5/Upper Caves Scavenger-Gunner | -4/Factory Scavenger-Mutant | -4/Extension Resources | -11 -10 -9 -8 -7 -6 -6 -5 -5 -5 -4 -4 ----------- Run | Jun Mat Mat Mat Fac Fac Low Fac Upp Upp Fac Ext Matter Collected 4177 | 200 36 348 376 382 1401 120 150 30 15 165 954 Remotely 565 | . . . 52 88 425 . . . . . . Salvage Created 9108 | . 56 469 458 332 3590 421 154 484 102 1212 1830 Parts 389 | . 6 34 24 20 137 16 5 28 8 38 73 Haulers Intercepted 6 | . . 1 3 . 1 . . . . 1 . Recyclers Shooed 7 | . . . 1 . 5 . . . . . 1 Parts Field Recycled 34 | . . 11 23 . . . . . . . . Retrieved Matter 205 | . . 68 137 . . . . . . . . Parts Self-Destructed 56 | . . . . . . 21 . 27 8 . . Prevented . | . . . . . . . . . . . . Kills | -11 -10 -9 -8 -7 -6 -6 -5 -5 -5 -4 -4 ------- Run | Jun Mat Mat Mat Fac Fac Low Fac Upp Upp Fac Ext Combat Hostiles Destroyed 163 | . 3 12 10 12 61 7 2 8 4 18 26 Melee 6 | . . . . . 3 1 . . . 2 . Guns 45 | . 3 12 3 5 13 1 . . . 2 6 Cannons 88 | . . . 5 7 27 5 1 8 4 13 18 AOE 16 | . . . 2 . 14 . . . . . . Classes Destroyed 17 | . 1 5 2 3 6 . . . . . . Worker 8 | . . . 1 1 6 . . . . . . Builder 5 | . . . . 1 3 . . . . 1 . Tunneler 1 | . . . . . 1 . . . . . . Hauler 6 | . . 1 3 . 1 . . . . 1 . Recycler 11 | . . 1 1 . 7 . . . . 1 1 Mechanic 3 | . . . . . 3 . . . . . . Operator 4 | . . . 1 . 1 . . . . . 2 Watcher 3 | . . 1 . . 1 . . . . . 1 Swarmer 45 | . 3 8 3 4 13 . . . 4 5 5 Grunt 60 | . . 2 5 3 16 6 . 7 . 8 13 Brawler 7 | . . . . . 6 . . . . . 1 Duelist 3 | . . . . . 2 1 . . . . . Protector 3 | . . . . . 3 . . . . . . Sentry 19 | . . 2 2 1 8 . 2 . . . 4 Specialist 2 | . . . . . 2 . . . . . . Hunter 8 | . . . . 1 4 . . . . 1 2 Programmer 15 | . . . . 3 7 . . 1 . 4 . Butcher 1 | . . . . . . . . . . . 1 Best Kill Streak 13 | . 3 7 3 3 13 3 1 4 4 7 5 Combat Bots Only 9 | . 3 6 3 3 9 3 1 4 4 7 5 Max Kills in Single Turn 9 | . 1 1 2 2 9 1 1 1 1 1 1 Gunslinging 1 | . . . . . 1 . . . . . . Exploded 4 | . . . 1 . 4 . . . . . . Melee 1 | . . . . . 1 1 . . . 1 . Uniques/NPCs Destroyed . | . . . . . . . . . . . . Combat | -11 -10 -9 -8 -7 -6 -6 -5 -5 -5 -4 -4 -------- Run | Jun Mat Mat Mat Fac Fac Low Fac Upp Upp Fac Ext Damage Taken 16444 | . 47 429 669 628 5643 1268 75 539 151 2515 4480 Core 2078 | . 19 78 110 22 616 83 . . . 359 791 Absorbed by Shields 2463 | . . . . 187 925 262 31 . . 203 855 Redirected to Shielding 156 | . . . . . . . . . . . 156 Regen/Repaired (Parts) 407 | . . . 153 79 175 . . . . . . Core Remaining (%) 80 | 100 92 80 80 96 . 17 . . 100 . . Volleys Fired 480 | . 5 39 60 39 149 21 4 25 8 45 85 Largest 3 | . 2 2 2 3 3 3 3 3 1 3 3 Hottest 300 | . 60 60 64 103 268 255 300 300 90 298 298 Shots Fired 1053 | . 10 78 89 99 325 48 12 77 8 116 191 Gun 377 | . 10 78 57 30 97 15 . . . 30 60 Cannon 656 | . . . 30 68 211 33 12 77 8 86 131 Launcher 20 | . . . 2 1 17 . . . . . . Special . | . . . . . . . . . . . . Kinetic 351 | . 5 67 87 98 94 . . . . . . Thermal 666 | . . . . . 214 48 12 77 8 116 191 Explosive 20 | . . . 2 1 17 . . . . . . Electromagnetic 16 | . 5 11 . . . . . . . . . Robot Hit Streak 19 | . 2 11 9 11 19 10 8 9 5 15 11 Robot Miss Streak 7 | . 3 4 3 7 6 4 . 4 1 2 3 Penetration Max . | . . . . . . . . . . . . Secondary Targets 2 | . . . . . 2 . . . . . . Max Gunslinging Chain 1 | . . . . . 1 . . . . . . Shots Hit Robots 674 | . 5 43 63 59 211 31 8 42 6 88 118 Core Hits 369 | . 4 19 23 26 163 15 3 18 4 35 59 Critical Kills 10 | . . . . . 5 . 1 . . 1 3 Critical Parts Destroyed 8 | . . . 1 . 6 . . . . 1 . Critical Strikes 27 | . . . 1 3 15 . 1 . . 3 4 Burn 1 | . . . . . . . . . . 1 . Meltdown 3 | . . . . . . . 1 . . . 2 Destroy 13 | . . . 1 . 9 . . . . 1 2 Blast 6 | . . . . 3 3 . . . . . . Smash 4 | . . . . . 3 . . . . 1 . Melee Attacks 26 | . . . . . 14 2 . . . 10 . Impact 26 | . . . . . 14 2 . . . 10 . Slashing . | . . . . . . . . . . . . Piercing . | . . . . . . . . . . . . Sneak Attacks 1 | . . . . . 1 . . . . . . Combat Hostiles . | . . . . . . . . . . . . Follow-up Attacks . | . . . . . . . . . . . . Damage Inflicted 23455 | . 56 618 1430 1319 10074 852 271 1393 169 3161 4112 Guns 5635 | . 56 618 693 457 2060 213 . . . 556 982 Cannons 13408 | . . . 490 752 4316 582 271 1393 169 2305 3130 Explosions 3408 | . . . 236 47 3125 . . . . . . Melee 757 | . . . . . 414 57 . . . 286 . Ramming 247 | . . . 11 63 159 . . . . 14 . Kinetic 4407 | . 34 538 1183 1209 1443 . . . . . . Thermal 15672 | . . . . . 6071 795 271 1393 169 2861 4112 Explosive 2270 | . . . 236 47 1987 . . . . . . Electromagnetic 102 | . 22 80 . . . . . . . . . Impact 757 | . . . . . 414 57 . . . 286 . Slashing . | . . . . . . . . . . . . Piercing . | . . . . . . . . . . . . Highest Corruption 16 | . . . . . 2 2 4 5 5 2 16 Average Corruption 3 | . . . . . 1 2 4 4 5 1 7 Corruption Purged 5 | . . . . . 5 . . . . . . Corruption Blocked . | . . . . . . . . . . . . Effects 89 | . . . . . 21 3 . 14 4 10 37 Message Errors 22 | . . . . . 7 1 . 4 1 3 6 Matter Fused 11 | . . . . . 3 . . . 2 1 5 Heat Flow Errors 15 | . . . . . 3 2 . 3 . . 7 Energy Discharges 7 | . . . . . 2 . . 2 1 . 2 Parts Rejected 2 | . . . . . . . . . . . 2 Parts Fused 2 | . . . . . . . . 1 . . 1 Data Loss (minor) 11 | . . . . . 3 . . 1 . 1 6 Data Loss (major) 4 | . . . . . 1 . . 1 . 2 . Misfires 7 | . . . . . 2 . . 2 . 2 1 Alerts 1 | . . . . . . . . . . . 1 Misdirections 4 | . . . . . . . . . . . 4 Weapon Failures 3 | . . . . . . . . . . 1 2 Overload Shots . | . . . . . . . . . . . . Overflow Damage 712 | . . . . 4 421 13 . 25 . 195 54 Projectiles 284 | . . . . 4 85 13 . 25 . 103 54 Explosions 76 | . . . . . 76 . . . . . . Melee 352 | . . . . . 260 . . . . 92 . Knockbacks 44 | . . . 1 18 20 . . . . 5 . Impact 7 | . . . . . 3 . . . . 4 . Kinetic 34 | . . . 1 16 17 . . . . . . Secondary 3 | . . . . 2 . . . . . 1 . Self-Inflicted Damage 234 | . . . . . 234 . . . . . . Shots 5 | . . . . . 5 . . . . . . Rammed 21 | . . . 1 7 10 . . . . 3 . Targets Rammed 26 | . . . 1 7 15 . . . . 3 . Kicked 2 | . . . . . 2 . . . . . . Crushed 3 | . . . . . 3 . . . . . . Highest Temperature 531 | . . 88 210 158 531 375 193 216 . 388 199 Average Temperature 98 | . . 34 53 60 124 149 93 99 . 103 106 Received Heat Transfer 3549 | . . 117 378 150 1087 582 26 201 . 406 602 Effects 10 | . . . . . 7 3 . . . . . Shutdowns 3 | . . . . . 1 2 . . . . . Energy Bleed 2 | . . . . . 2 . . . . . . Interference 2 | . . . . . 2 . . . . . . Matter Decay 1 | . . . . . . 1 . . . . . Damage (minor) 2 | . . . . . 2 . . . . . . Siege Activations . | . . . . . . . . . . . . Robots Corrupted . | . . . . . . . . . . . . Combat Hostiles . | . . . . . . . . . . . . Parts Fried 9 | . . . . . 7 . . . . 1 1 Impact Corruptions 14 | . . . . . 10 . . . . 4 . Robots Melted 4 | . . . . . 1 . 1 . . . 2 Combat Hostiles 4 | . . . . . 1 . 1 . . . 2 Parts Melted 40 | . . . . . 4 1 2 3 1 11 18 Heat Transferred 17755 | . . . . . 5934 1110 296 1517 222 3494 5182 Parts Sabotaged 3 | . . . . . 3 . . . . . . Parts Stolen . | . . . . . . . . . . . . Parts Stripped . | . . . . . . . . . . . . Power Chain Reactions . | . . . . . . . . . . . . Missiles Intercepted . | . . . . . . . . . . . . Alert | -11 -10 -9 -8 -7 -6 -6 -5 -5 -5 -4 -4 ------- Run | Jun Mat Mat Mat Fac Fac Low Fac Upp Upp Fac Ext Peak Influence 1636 | . 100 415 356 359 1636 . 756 . . 481 939 Initial 709 | . . 42 133 21 175 . 709 . . 252 221 Average 444 | . 60 251 191 105 627 . 697 . . 356 570 Maximum Alert Level 5 | . . 2 1 1 5 . 3 . . 2 3 Low Security (%) 24 | 100 100 31 44 88 9 . . . . . . Level 1 33 | . . 65 55 11 30 . . . . 55 33 Level 2 17 | . . 2 . . 21 . 18 . . 44 25 Level 3 18 | . . . . . 22 . 81 . . . 40 Level 4 4 | . . . . . 12 . . . . . . Level 5 1 | . . . . . 3 . . . . . . High Security . | . . . . . . . . . . . . Max Security . | . . . . . . . . . . . . Squads Dispatched 39 | . . . 1 3 19 . . . . 6 10 Investigation 6 | . . . . 1 3 . . . . . 2 Extermination 8 | . . . . 1 5 . . . . 2 . Reinforcement 14 | . . . 1 1 6 . . . . 1 5 Assault 11 | . . . . . 5 . . . . 3 3 Garrison . | . . . . . . . . . . . . Intercept . | . . . . . . . . . . . . Searches Triggered . | . . . . . . . . . . . . Construction Impeded 3 | . . . . . 1 . . . . 1 1 Haulers Reinforced 2 | . . . . . 2 . . . . . . Active Scanning Responses . | . . . . . . . . . . . . Cargo Convoy Interrupts 1 | . . . . . 1 . . . . . . Stealth | -11 -10 -9 -8 -7 -6 -6 -5 -5 -5 -4 -4 --------- Run | Jun Mat Mat Mat Fac Fac Low Fac Upp Upp Fac Ext Distress Signals 12 | . 1 1 2 . 4 . . . . 1 3 Communications Jammed 9 | . . . . . . . . . . 9 . Distress Signals 9 | . . . . . . . . . . 9 . Times Spotted 263 | . 5 21 21 18 99 9 2 8 5 26 49 Peak Tracking Total 10 | . 4 5 4 4 10 5 1 4 4 9 8 Tactical Retreats 14 | . . 2 1 2 4 . . . 1 3 1 Traps | -11 -10 -9 -8 -7 -6 -6 -5 -5 -5 -4 -4 ------- Run | Jun Mat Mat Mat Fac Fac Low Fac Upp Upp Fac Ext Traps Triggered 6 | . . . . 1 1 . 1 . . 1 2 Indirectly . | . . . . . . . . . . . . Trap Hack Attempts . | . . . . . . . . . . . . Triggered . | . . . . . . . . . . . . Disarmed . | . . . . . . . . . . . . Reprogrammed . | . . . . . . . . . . . . Reused . | . . . . . . . . . . . . Traps Extracted . | . . . . . . . . . . . . Installed . | . . . . . . . . . . . . Triggered 1 | . . . . . . . . . . . 1 Machines | -11 -10 -9 -8 -7 -6 -6 -5 -5 -5 -4 -4 ---------- Run | Jun Mat Mat Mat Fac Fac Low Fac Upp Upp Fac Ext Machines Disabled 19 | . . 1 2 . 12 . . . . 1 3 Max in Single Turn 6 | . . 1 1 . 6 . . . . 1 1 Garrison Access 4 | . . . . 1 1 . 1 . . 1 . Machines Repaired . | . . . . . . . . . . . . Machines Sabotaged . | . . . . . . . . . . . . Overloaded Fab Kills . | . . . . . . . . . . . . Hacking | -11 -10 -9 -8 -7 -6 -6 -5 -5 -5 -4 -4 --------- Run | Jun Mat Mat Mat Fac Fac Low Fac Upp Upp Fac Ext Machines Accessed 47 | . 4 5 5 10 12 . 3 . . 3 5 Terminals 28 | . 4 5 3 5 5 . 1 . . 2 3 Fabricators 4 | . . . . 2 2 . . . . . . Repair Stations 6 | . . . 2 1 2 . . . . . 1 Recycling Units 4 | . . . . . 2 . . . . 1 1 Scanalyzers 2 | . . . . 1 . . 1 . . . . Garrison Access 3 | . . . . 1 1 . 1 . . . . Total Hacks 125 | . 10 19 15 31 29 . 6 . . 6 9 Successful 60 | . 5 10 9 13 14 . 2 . . 3 4 Failed 65 | . 5 9 6 18 15 . 4 . . 3 5 Catastrophic 12 | . 1 1 . 3 4 . 1 . . . 2 Database Lockouts . | . . . . . . . . . . . . Manual 29 | . 8 9 . 4 5 . 3 . . . . Terminals 79 | . 10 19 7 17 12 . 3 . . 5 6 Fabricators 9 | . . . . 4 5 . . . . . . Repair Stations 18 | . . . 8 4 4 . . . . . 2 Recycling Units 7 | . . . . . 5 . . . . 1 1 Scanalyzers 5 | . . . . 3 . . 2 . . . . Garrison Access 7 | . . . . 3 3 . 1 . . . . Terminal Hacks 25 | . 3 6 3 4 4 . 1 . . 2 2 Part Schematic 2 | . . . . 2 . . . . . . . Robot Analysis 5 | . 2 . . . 1 . 1 . . . 1 Prototype ID Bank 1 | . . . 1 . . . . . . . . Open Door 1 | . . . . . . . . . . . 1 Open DSF 1 | . . . . . . . . . . 1 . Branch Access Points 2 | . . . . 1 1 . . . . . . Emergency Access Points 2 | . . 1 . . 1 . . . . . . Terminal Index 1 | . . 1 . . . . . . . . . Unreport Threat 1 | . . . 1 . . . . . . . . Locate Traps 1 | . . 1 . . . . . . . . . Hauler Manifests 3 | . . 1 1 . . . . . . 1 . Zone Layout 5 | . 1 2 . 1 1 . . . . . . Fabricator Hacks 6 | . . . . 1 5 . . . . . . Load Schematic 3 | . . . . 1 2 . . . . . . Build 3 | . . . . . 3 . . . . . . Repair Station Hacks 11 | . . . 6 2 2 . . . . . 1 Scan Component 6 | . . . 3 1 1 . . . . . 1 Repair 5 | . . . 3 1 1 . . . . . . Recycling Unit Hacks 2 | . . . . . . . . . . 1 1 Report Inventory 1 | . . . . . . . . . . 1 . Retrieve Components 1 | . . . . . . . . . . . 1 Scanalyzer 2 | . . . . 2 . . . . . . . Insert Component 1 | . . . . 1 . . . . . . . Analyze 1 | . . . . 1 . . . . . . . Garrison Access Hacks 3 | . . . . 1 1 . 1 . . . . Seal Access 3 | . . . . 1 1 . 1 . . . . Unauthorized Hacks 11 | . 2 4 . 3 2 . . . . . . Terminals 11 | . 2 4 . 3 2 . . . . . . Track 1 | . . 1 . . . . . . . . . Botnet 9 | . 1 3 . 3 2 . . . . . . Operators 1 | . 1 . . . . . . . . . . Fabricators . | . . . . . . . . . . . . Repair Stations . | . . . . . . . . . . . . Recycling Units . | . . . . . . . . . . . . Scanalyzers . | . . . . . . . . . . . . Garrison Access . | . . . . . . . . . . . . Data Cores Recovered 1 | . . . . . 1 . . . . . . Used . | . . . . . . . . . . . . Hacking Detections 39 | . 4 5 4 8 12 . 2 . . 1 3 Full Trace Events 6 | . . . . 1 3 . . . . . 2 Feedback Events . | . . . . . . . . . . . . Feedback Blocked . | . . . . . . . . . . . . Robot Schematics Acquired . | . . . . . . . . . . . . Robots Built . | . . . . . . . . . . . . Authchips . | . . . . . . . . . . . . Time . | . . . . . . . . . . . . Total Robot Build Rating . | . . . . . . . . . . . . Part Schematics Acquired 3 | . . . . 3 . . . . . . . Parts Built 5 | . . . . . 5 . . . . . . Authchips . | . . . . . . . . . . . . Time 329 | . . . . . 329 . . . . . . Total Part Build Rating 31 | . . . . . 31 . . . . . . Parts Repaired 5 | . . . 3 1 1 . . . . . . Time 125 | . . . 90 16 19 . . . . . . Parts Recycled . | . . . . . . . . . . . . Recycled Matter . | . . . . . . . . . . . . Retrieved Matter . | . . . . . . . . . . . . Retrieved Components 9 | . . . . . . . . . . . 9 Parts Scanalyzed 1 | . . . . 1 . . . . . . . Part Schematics Acquired 1 | . . . . 1 . . . . . . . Parts Damaged . | . . . . . . . . . . . . Bothacking | -11 -10 -9 -8 -7 -6 -6 -5 -5 -5 -4 -4 ------------ Run | Jun Mat Mat Mat Fac Fac Low Fac Upp Upp Fac Ext Used RIF Installer . | . . . . . . . . . . . . Robots Hacked . | . . . . . . . . . . . . Non-combat . | . . . . . . . . . . . . Combat . | . . . . . . . . . . . . Robot Hacks Applied . | . . . . . . . . . . . . Relay Couplers Released 6 | . . . . 3 . . . . . 3 . Machine Destruction 3 | . . . . . . . . . . 3 . Programmers 3 | . . . . 3 . . . . . . . Fabnet Peak Effective % . | . . . . . . . . . . . . Robots Rewired 8 | . . . . . . . . . . . 8 Allies Hacked . | . . . . . . . . . . . . Hacks Repelled . | . . . . . . . . . . . . Allies | -11 -10 -9 -8 -7 -6 -6 -5 -5 -5 -4 -4 -------- Run | Jun Mat Mat Mat Fac Fac Low Fac Upp Upp Fac Ext Total Allies 10 | . . . . . . 1 . . . . 9 Largest Group 6 | . . . . . . 1 . . . . 6 Highest-Rated Group 344 | . . . . . . 127 . . . . 344 Highest-Rated Ally 159 | . . . . . . 127 . . . . 159 Total Orders 2 | . . . . . . . 2 . . . . EXPLORE 2 | . . . . . . . 2 . . . . Ally Attacks 66 | . . . . . . 2 . . . . 64 Total Damage 1926 | . . . . . . 193 . . . . 1733 Kills 15 | . . . . . . 2 . . . . 13 Allies Corrupted . | . . . . . . . . . . . . Allies Melted . | . . . . . . . . . . . . Intel | -11 -10 -9 -8 -7 -6 -6 -5 -5 -5 -4 -4 ------- Run | Jun Mat Mat Mat Fac Fac Low Fac Upp Upp Fac Ext Robot Analysis Total 5 | . 2 . . . 1 . 1 . . . 1 Derelict Logs Recovered 2 | . . . . . . . . 2 . . . Drone Launches 2 | . . . . . . . 2 . . . . Drone Recoveries 2 | . . . . . . . 2 . . . . Exploration | -11 -10 -9 -8 -7 -6 -6 -5 -5 -5 -4 -4 ------------- Run | Jun Mat Mat Mat Fac Fac Low Fac Upp Upp Fac Ext Turns Passed 10371 | 55 156 677 1010 1152 3576 245 488 734 122 868 1288 Spaces Moved 4939 | 46 144 387 431 592 1589 91 288 386 70 362 553 Core 6 | 2 . . . . . . . . . . 4 Treads 3749 | . . 247 431 592 1237 91 288 386 70 362 45 Legs 856 | . . . . . 352 . . . . . 504 Wheels 328 | 44 144 140 . . . . . . . . . Hover . | . . . . . . . . . . . . Flight . | . . . . . . . . . . . . Fastest Speed 50 | 50 90 90 160 163 100 161 153 153 153 153 50 Average Speed 157 | 87 90 134 179 163 169 168 154 153 153 174 132 Slowest Speed 330 | 90 90 160 250 163 330 246 161 153 153 246 190 Overloaded Moves . | . . . . . . . . . . . . Propulsion Burnouts . | . . . . . . . . . . . . Robots Hopped . | . . . . . . . . . . . . Cave-ins Triggered . | . . . . . . . . . . . . Exploration Rate (%) 27 | 4 30 36 34 21 39 12 11 63 13 11 51 Regions Visited 11 Branch Regions 4 Pre-discovered Areas . | . . . . . . . . . . . . Known Exits Taken 1 | . . . . . 1 . . . . . . Unknown Exits Taken 10 | 1 1 1 1 1 . 1 1 1 1 1 . Scrap Searched 1 | . . . . . . . . . 1 . . Spaces Dug 32 | . . . . 9 23 . . . . . . Terrain Destroyed 361 | . . . 19 9 229 8 2 33 1 24 36 Melee . | . . . . . . . . . . . . Projectile 160 | . . . 1 . 55 8 2 33 1 24 36 AOE 201 | . . . 18 9 174 . . . . . . Terrain Rammed . | . . . . . . . . . . . . Walls Destroyed . | . . . . . . . . . . . . Machines Disabled . | . . . . . . . . . . . . Actions | -11 -10 -9 -8 -7 -6 -6 -5 -5 -5 -4 -4 --------- Run | Jun Mat Mat Mat Fac Fac Low Fac Upp Upp Fac Ext Total 6584 | 57 160 478 597 698 2144 136 316 474 77 483 964 Wait 526 | . 7 20 52 38 226 13 2 60 . 21 87 Move 4928 | 45 143 386 430 591 1588 90 287 385 69 361 553 Hop . | . . . . . . . . . . . . Pick Up 101 | 6 2 12 18 8 25 2 3 . . 9 16 Fast Attach 84 | 6 1 4 4 1 28 1 6 1 . 13 19 Attach 49 | . . 2 3 2 17 6 2 . . 11 6 Detach 12 | . . 1 . . 4 . 1 . . 1 5 Swap 92 | . 1 6 9 6 39 . 8 1 . 2 20 Drop 132 | . 1 8 20 6 39 1 3 2 . 7 45 Fire 480 | . 5 39 60 39 149 21 4 25 8 45 85 Melee 26 | . . . . . 14 2 . . . 10 . Ram . | . . . . . . . . . . . . Kick 2 | . . . . . 2 . . . . . . Crush 24 | . . . 1 7 13 . . . . 3 . Escape Stasis 9 | . . . . . . . . . . . 9 Rewire 119 | . . . . . . . . . . . 119 Trap . | . . . . . . . . . . . . Miscellaneous . | . . . . . . . . . . . . Route ------- -11/Junkyard -10/Materials -9/Materials (discovered 2 exits: *Mat / [*Min]) -8/Materials -7/Factory (discovered 3 exits: *Fac / Low x2) -6/Factory (discovered 2 exits: *Low x2) -6/Lower Caves -5/Factory -5/Upper Caves -5/Upper Caves -4/Factory -4/Extension History --------- Turn | Location | Event 10 | -11/Junkyard | Discovered new exit (range 16) 56 | -11/Junkyard | Entered Materials 170 | -10/Materials | Discovered new exit (range 16) 212 | -10/Materials | Entered another Materials area 212 | -9/Materials | Evolved 2 slots: Propulsion x1, Utility x1 318 | -9/Materials | Build established: Mutant 626 | -9/Materials | Discovered new exit (range 16) 802 | -9/Materials | Discovered new exit (range 11) 889 | -9/Materials | Entered another Materials area 889 | -8/Materials | Evolved 2 slots: Propulsion x1, Utility x1 942 | -8/Materials | Repaired Lgt. Armor Plating? 1398 | -8/Materials | Repaired Imp. Treads 1438 | -8/Materials | Repaired Rocket Launcher 1873 | -8/Materials | Discovered new exit (range 15) 1899 | -8/Materials | Entered Factory 1899 | -7/Factory | Evolved 2 slots: Utility x1, Weapon x1 2203 | -7/Factory | Build established: Tank 2444 | -7/Factory | Identified exit to Lower Caves 2486 | -7/Factory | Repaired Med. Armor Plating 2999 | -7/Factory | Discovered new exit (range 12) 3051 | -7/Factory | Entered another Factory area 3051 | -6/Factory | Evolved 2 slots: Power x1, Utility x1 3369 | -6/Factory | Fabricated Adv. Transmission Jammer? 3426 | -6/Factory | Repaired Arm. Treads? 3492 | -6/Factory | Fabricated Arm. Medium Treads? 3874 | -6/Factory | Build established: Mutant 3999 | -6/Factory | Cargo convoy interrupted 4040 | -6/Factory | Destroyed 9 combat bots 4041 | -6/Factory | Lost 6 parts (1p1n3u1w) 4512 | -6/Factory | Lost 3 parts (1p2u) 4763 | -6/Factory | Build established: Scavenger-Mutant 5501 | -6/Factory | First assault squad dispatched 5696 | -6/Factory | Core integrity fell below 50% 5779 | -6/Factory | Destroyed 8 combat bots 6267 | -6/Factory | Fabricated Arm. Medium Treads? 6309 | -6/Factory | Build established: Scavenger-Tank 6492 | -6/Factory | Identified exit to Lower Caves 6627 | -6/Factory | Entered Lower Caves 6820 | -6/Lower Caves | Core integrity fell below 20% 6822 | -6/Lower Caves | CL-ANK showed up to help 6824 | -6/Lower Caves | CL-ANK revealed a hidden path 6872 | -6/Lower Caves | Entered Factory 6872 | -5/Factory | Evolved 2 slots: Propulsion x1, Utility x1 6874 | -5/Factory | Lost 8 parts (1p1n4u2w) 7320 | -5/Factory | Discovered new exit (range 15) 7360 | -5/Factory | Entered Upper Caves 7387 | -5/Upper Caves | Learned Factory security intel 7602 | -5/Upper Caves | Learned Factory non-interactive machine intel 8070 | -5/Upper Caves | Discovered new exit (range 10) 8094 | -5/Upper Caves | Entered another Upper Caves area 8173 | -5/Upper Caves | Discovered new exit (range 7) 8216 | -5/Upper Caves | Entered Factory 8216 | -4/Factory | Evolved 2 slots: Power x1, Utility x1 8218 | -4/Factory | Loaded intel: 176 non-interactive machine locations 8370 | -4/Factory | Identified exit to DSF 8468 | -4/Factory | Build established: Scavenger-Mutant 8540 | -4/Factory | Lost 11 parts (2p4n3u2w) 8799 | -4/Factory | Destroyed 7 combat bots 8802 | -4/Factory | Lost 5 parts (2p2n1w) 8953 | -4/Factory | Build established: Scavenger-Gunner 8966 | -4/Factory | First assault squad dispatched 9049 | -4/Factory | Discovered new exit (range 22) 9084 | -4/Factory | Entered Extension 9641 | -4/Extension | Rescued A7 9834 | -4/Extension | First assault squad dispatched 10008 | -4/Extension | System corruption reached 10% 10028 | -4/Extension | Extracted ID and sensor layout for unrecognized location from A7's data core 10050 | -4/Extension | Lost 4 parts (1p2u1w) 10231 | -4/Extension | Build established: Scavenger-Mutant 10299 | -4/Extension | Spotted B-86 Titan 10305 | -4/Extension | Core integrity fell below 50% 10312 | -4/Extension | Spotted B-86 Titan 10351 | -4/Extension | Core integrity fell below 20% 10370 | -4/Extension | Released all parts (2) 10372 | -4/Extension | Destroyed by Y-64 Sentinel with KE Penetrator Last Messages --------------- 10354_ Slug penetrates Wall. 10354_ Acquired Arm. Medium Treads. 10356_ B-86 Titan exits siege mode. 10357_ Arm. Medium Treads destroyed. 10357_ Acquired Med. Treads. 10358_ Rnf. Fission Core destroyed. 10358_ Penetrated by Slug. 10358_ Slug penetrates Sealed Heavy Doors. 10359_ B-86 Titan exits siege mode. 10361_ Slug penetrates Wall. 10363_ Penetrated by Slug. 10364_ Myomer Leg destroyed. 10364_ Slug penetrates R-10 Processor. 10365_ B-86 Titan activates siege mode. 10366_ Myomer Leg destroyed. 10367_ Penetrated by Slug. 10370_ Med. Treads destroyed. 10370_ Released Enh. Optical Array. 10370_ Released Arm. Medium Treads. 10372_ Penetrated by Slug. Map ----- +----------------------------------------------------+ | ### ##?????????????????????????????????????????? | | ###=#%##?????????????????????????????????????????? | | ????# ##?????????????????????????????????????????? | | #####+##?????????????????????????????????????????? | | # [ #?????????????????????????????????????????? | | # =%=% ###???????????????????????????????????????? | | # ==+ #????????#??????????????????????????????? | | # = # #???????# ?????????????????????????????? | | # = # #???????# ?????????????????????????????? | | # # #???????# ?????????????????????????????? | | ######## #???????# ?????????????????????????????? | | ##?????# #???????# #????????????????????????????? | | ???????# #???????# #????????????????????????????? | | ???????# ##??????? #????????????????????????????? | | ???????# # ??????? #????????????????????????????? | | ???????# # ######?# #????????????????????????????? | | ?????### #"# ## ### ###??????????????????????????? | | ?????#" " "" ""#??????????????????????????? | | ?????# "%= " " #??????????????????????????? | | ?????# %%% #??????????????????????????? | | ???# # %[ #??????????????????????????? | | ###### =%* ######################?????? | | ?????? | | ????? | | % ????? | | = @ ????? | | R A kuu ????? | | #"#### BBY ;##################????????? | | ?????# % BB ! " ?????????????????????????? | | ?????# % %Y!!!% "#?????????????????????????? | | ?????# BB*%= ! "#?????????????????????????? | | ?????# BB!%! !! ##?????????????????????????? | | ?????###""# #"""##""##"??????????????????????????? | | ???????######????## #?##?????????????????????????? | | ??????????????????###????????????????????????????? | | | | | | | | | | | | | | | | | | | | | | | | | | | | | | | +----------------------------------------------------+ Best States ------------- Heat Dissipation 131 Coolant Potential 100 Energy Generation 65 Energy Capacity 1120 Matter Stores 300 Matter Capacity 300 Sight Range 22 Terrain Scan Density 10 Jamming Range 16 Base Temperature (-) 200 Armor Coverage 450 Resistance: TH 25 Power Shielding 33 Utility Shielding 66 Phase Shifting 10 Evasion (%) 55 Target Analysis 5 Core Analysis 6 Recoil Reduction 5 Matter Filtering 30 Particle Charging 30 Offensive Hacking 10 Defensive Hacking 10 Item Schematics ----------------- Lyr. Heavy Armor Plating | -7/Factory | Hacked Arm. Medium Treads | -7/Factory | Hacked Adv. Treads | -7/Factory | Scanalyzed Robot Schematics ------------------ None Fabricated ------------ Adv. Transmission Jammer | x1 | -6/Factory | Preloaded Arm. Medium Treads | x2 | -6/Factory Arm. Medium Treads | x2 | -6/Factory Alien Tech Used ----------------- None Achievements -------------- None Challenges ------------ None Game ------ Seed SeismicRocketFacilitator Manual? 0 Play Time 01:52:42 Cumulative 105.1 hours Start 2023.11.30 @ 10:53:13 End 2023.11.30 @ 12:48:36 Sessions 1 Manual Loads 0 Difficulty Rogue Special Mode None Game No. 86 Rogue 83 Adventurer 3 Explorer 0 Win Type - Total 0 Types 0/0/0/0/0/0/0/0/0 Lore% 61 Gallery% 68 Achievement% 52 Wizard Run 0 Options --------- ASCII 0 Keyboard 0 Movement Mouse Keybinds 0 Fullscreen 2 Font 18/SmallcapsGlow Map View 76x50 Tactical HUD 1 Map Filters NONE Filters NONE Steam 1 RUN: 64a4007e-62f9-4a17-ac0e-9ee3332e7d7d